bitfinex/quotes_SOLUSD_20240808
["timestamp","ask_amount","ask_price","bid_price","bid_amount"]
[1723154304156,32.76739252,160.23,159.92,31.2643]
[1723154304347,17.16544517,160.22,160.01,6.2493]
[1723154304547,6.2463,160.1,159.99,7.49934658]
[1723154304741,6.2467,160.09,159.99,7.49934658]
[1723154304955,6.2467,160.09,159.99,6.2502]
[1723154305160,45.0,160.08,159.99,6.2502]
[1723154305466,45.0,160.08,160.01,6.2492]
[1723154305686,45.0,160.09,159.99,6.2502]
[1723154305965,45.0,160.09,160.02,6.2489]
[1723154306272,45.0,160.09,160.03,1.24932521]
[1723154306454,45.0,160.09,160.0,6.2498]
[1723154306647,51.2467,160.09,160.0,6.2498]
[1723154306841,45.0,160.09,160.01,7.49890452]
[1723154307059,45.0,160.1,160.01,1.24950452]
[1723154307273,6.2489,160.03,159.95,6.2517]
[1723154307454,6.2486,160.04,159.93,16.88080685]
[1723154307657,45.0,160.03,159.96,6.2514]
[1723154308150,45.0,160.03,159.97,7.50087742]
[1723154308350,31.218,160.17,159.97,7.50087742]
[1723154308351,15.6111,160.15,159.97,16.87727742]
[1723154308548,15.6143,160.11,159.97,16.87727742]
[1723154308767,45.0,160.1,159.98,1.24970011]
[1723154308948,6.2467,160.09,160.0,6.2498]
[1723154309272,2.49062327,160.22,159.9,31.2688]
[1723154309273,15.6045,160.21,160.04,15.6204]
[1723154309449,6.2444,160.15,160.05,1.24894045]
[1723154309656,6.2444,160.15,160.08,6.2467]
[1723154309866,6.2438,160.16,160.07,15.6172]
[1723154310044,15.68,160.25,160.1,6.2459]
[1723154310249,15.68,160.25,160.1,15.6143]
[1723154310457,15.68,160.25,160.14,15.611]
[1723154310762,15.68,160.25,160.15,1.24826793]
[1723154311472,15.68,160.25,160.17,15.6075]
[1723154311676,15.68,160.25,160.19,6.2424]
[1723154311969,1.2901301,160.33,160.2,7.48993476]
[1723154311970,6.2392,160.28,160.2,7.48993476]
[1723154312185,1.2901301,160.33,160.25,6.24]
[1723154312371,1.2901301,160.33,160.26,1.24757678]
[1723154312549,1.2901301,160.33,160.27,1.24751477]
[1723154312749,1.2901301,160.33,160.27,7.48691477]
[1723154312950,1.2901301,160.33,160.28,1.2473578]
[1723154313150,1.2901301,160.33,160.29,15.5957]
[1723154313456,1.2901301,160.33,160.3,1.24725232]
[1723154313655,1.2901301,160.33,160.29,15.5957]
[1723154314453,1.2901301,160.33,160.29,21.8343]
[1723154314876,1.2901301,160.33,160.3,1.24728727]
[1723154315254,6.2318,160.47,160.37,6.2355]
[1723154315464,16.3198,160.48,160.38,1.24659384]
[1723154315681,6.2295,160.53,160.41,15.5849]
[1723154315883,31.5129666,160.57,160.43,6.2329]
[1723154316050,6.2298,160.52,160.43,1.24634749]
[1723154316426,7.4238301,160.58,160.46,15.5801]
[1723154316427,1.2901301,160.58,160.46,15.5801]
[1723154316554,1.2901301,160.58,160.53,15.573]
[1723154316872,1.2901301,160.58,160.56,6.2279]
[1723154317073,6.2227,160.71,160.59,6.2267]
[1723154317370,6.223,160.7,160.59,7.47177201]
[1723154317683,35.47244416,160.71,160.64,15.5626]
[1723154318053,35.47244416,160.71,160.7,15.5569]
[1723154318854,26.99684416,160.71,160.7,15.5569]
[1723154319072,26.69992336,160.71,160.7,35.5569]
[1723154319398,26.69992336,160.71,160.7,80.5569]
[1723154320065,7.9657229,160.71,160.7,80.5569]
[1723154320264,7.9657229,160.71,160.7,60.5569]
[1723154320469,7.9657229,160.71,160.7,15.5569]
[1723154320857,7.9657229,160.71,160.67,6.2236]
[1723154321188,7.9657229,160.71,160.68,15.558]
[1723154321392,7.9657229,160.71,160.52,20.0]
[1723154321393,7.9657229,160.71,160.61,15.5654]
[1723154321601,7.9657229,160.71,160.62,1.24265857]
[1723154321893,45.0,160.7,160.55,15.5712]
[1723154322097,45.0,160.7,160.48,15.5773]
[1723154322456,45.0,160.7,160.49,1.24527365]
[1723154322699,6.2281,160.57,160.48,15.5773]
[1723154322893,45.0,160.7,160.42,15.584]
[1723154323083,1.55687012,160.69,160.34,20.0]
[1723154323382,1.55687012,160.69,160.24,41.17]
[1723154323383,6.231,160.49,160.37,6.2353]
[1723154323587,6.2325,160.45,160.34,6.2365]
[1723154323762,6.2333,160.43,160.35,15.5908]
[1723154323960,6.234,160.42,160.25,20.0]
[1723154324162,6.2351,160.39,160.29,15.5963]
[1723154324365,51.36700508,160.59,160.3,1.24686606]
[1723154324366,6.2355,160.38,160.3,1.24686606]
[1723154324578,6.2336,160.42,160.31,1.24696128]
[1723154324778,6.2336,160.42,160.26,20.0]
[1723154324981,6.3994,160.44,160.28,15.5969]
[1723154325179,31.1465,160.54,160.28,15.5969]
[1723154325180,6.2313,160.48,160.36,6.2357]
[1723154325489,6.23,160.52,160.41,6.2336]
[1723154325789,6.23,160.52,160.42,1.24596307]
[1723154325999,6.2304,160.51,160.43,1.2459289]
[1723154326295,6.3994,160.54,160.43,1.2459289]
[1723154326296,6.2308,160.5,160.43,1.2459289]
[1723154326794,6.2297,160.52,160.43,1.2459289]
[1723154326955,6.3994,160.54,160.39,1.24606744]
[1723154327161,6.2312,160.49,160.4,1.24615922]
[1723154327502,6.3994,160.54,160.4,7.48015922]
[1723154328369,6.2315,160.48,160.4,1.24615922]
[1723154328666,6.3994,160.54,160.41,1.24619294]
[1723154328877,6.2311,160.49,160.41,1.24619294]
[1723154329067,6.2319,160.47,160.38,15.5872]
[1723154329266,6.2325,160.45,160.38,16.83362933]
[1723154329464,60.574,160.53,160.32,15.5931]
[1723154329661,6.2342,160.41,160.33,1.24673907]
[1723154329888,45.0,160.53,160.36,15.5893]
[1723154330109,6.2306,160.5,160.4,6.234]
[1723154330262,21.9722,160.54,160.36,15.5893]
[1723154330263,6.2326,160.45,160.36,15.5893]
[1723154330465,6.233,160.44,160.37,1.2464643]
[1723154330667,6.2322,160.46,160.38,6.2349]
[1723154330883,45.0,160.49,160.39,7.48100265]
[1723154331096,45.0,160.49,160.4,1.2463594]
[1723154331382,6.2315,160.48,160.4,1.2463594]
[1723154331588,6.2318,160.47,160.4,1.2463594]
[1723154331960,21.9722,160.54,160.41,1.24627241]
[1723154332175,6.2322,160.46,160.41,1.24627241]
[1723154332371,6.2315,160.48,160.41,1.24627241]
[1723154332560,21.9722,160.54,160.41,1.24627241]
[1723154332974,6.2317,160.47,160.41,1.24627241]
[1723154333482,6.232,160.47,160.38,6.235]
[1723154333681,6.232,160.47,160.39,6.2347]
[1723154333890,6.232,160.47,160.4,6.2341]
[1723154334060,6.232,160.47,160.4,7.4804981]
[1723154334463,21.9718,160.54,160.41,6.2338]
[1723154334763,21.9718,160.54,160.42,1.24618713]
[1723154334985,6.2308,160.5,160.41,7.47983523]
[1723154335174,6.2308,160.5,160.43,6.2331]
[1723154335378,6.3994,160.54,160.44,6.2326]
[1723154335699,6.3994,160.54,160.44,1.24597863]
[1723154335700,6.2304,160.51,160.44,1.24597863]
[1723154335870,6.3994,160.54,160.44,1.24597863]
[1723154336275,6.23,160.52,160.44,1.24597863]
[1723154336465,12.6286,160.54,160.44,16.82707863]
[1723154336885,6.2295,160.53,160.44,16.82707863]
[1723154337088,6.3994,160.54,160.47,6.2315]
[1723154337386,12.6284,160.54,160.48,1.24579006]
[1723154337587,12.6284,160.54,160.49,1.24578007]
[1723154337793,12.6284,160.54,160.47,6.2315]
[1723154337794,6.3994,160.54,160.47,6.2315]
[1723154338112,6.3994,160.54,160.49,6.2307]
[1723154338291,6.2265,160.61,160.44,31.1629]
[1723154338601,37.66245903,160.6,160.52,6.2296]
[1723154338906,6.2815,160.65,160.53,1.24538328]
[1723154339086,6.2815,160.65,160.55,15.5711]
[1723154339402,6.2815,160.65,160.56,1.24503472]
[1723154339716,6.2815,160.65,160.53,15.5726]
[1723154339717,6.2253,160.64,160.53,15.5726]
[1723154339879,6.2263,160.61,160.54,7.47386617]
[1723154340212,15.3636,160.68,160.56,15.5696]
[1723154340412,6.2249,160.65,160.57,7.47256967]
[1723154340749,15.3636,160.68,160.49,31.1532]
[1723154340882,15.3636,160.68,160.49,20.0]
[1723154341076,15.3636,160.68,160.5,65.0]
[1723154341277,15.3636,160.68,160.52,20.0]
[1723154341506,6.2228,160.7,160.53,65.0]
[1723154341805,7.9657229,160.71,160.61,6.226]
[1723154342004,14.1884229,160.71,160.63,15.5636]
[1723154342180,49.1357229,160.71,160.56,41.17]
[1723154342386,7.9657229,160.71,160.66,15.5599]
[1723154342587,12.5026,160.75,160.68,6.2233]
[1723154343307,6.2815,160.75,160.66,15.5599]
[1723154343526,48.10579447,160.79,160.7,15.5568]
[1723154344079,16.4162,160.79,160.7,15.5568]
[1723154344279,16.4162,160.79,160.74,15.5529]
[1723154344519,57.5862,160.79,160.74,15.5529]
[1723154344816,57.5862,160.79,160.69,15.5571]
[1723154345031,57.5862,160.79,160.72,15.5542]
[1723154345391,41.17,160.79,160.72,15.5542]
[1723154346197,41.17,160.79,160.72,21.7759]
[1723154346408,41.17,160.79,160.72,15.5542]
[1723154346796,41.17,160.81,160.75,21.7717]
[1723154347007,41.17,160.81,160.75,15.5512]
[1723154347212,41.17,160.81,160.77,6.2198]
[1723154347496,41.17,160.81,160.75,15.5512]
[1723154347803,41.17,160.81,160.79,6.2192]
[1723154348006,41.17,160.81,160.71,51.1101]
[1723154348007,6.216,160.88,160.8,6.2187]
[1723154348256,16.1243,160.9,160.78,15.5484]
[1723154348257,6.2164,160.87,160.78,15.5484]
[1723154348516,6.2166,160.86,160.78,15.5484]
[1723154348722,16.1243,160.9,160.74,15.5529]
[1723154348907,31.6626,160.9,160.74,15.5529]
[1723154349519,6.2163,160.87,160.77,15.5492]
[1723154349724,16.1243,160.9,160.77,15.5492]
[1723154350036,16.1243,160.9,160.8,6.2187]
[1723154350206,41.17,160.84,160.77,15.5492]
[1723154350402,16.1243,160.9,160.78,6.2194]
[1723154350623,16.1243,160.9,160.77,21.7689]
[1723154350826,16.1243,160.9,160.77,15.5492]
[1723154351033,6.2181,160.82,160.74,6.2209]
[1723154351201,6.219,160.8,160.73,15.5538]
[1723154351409,6.2183,160.82,160.73,15.5538]
[1723154351605,15.5403,160.88,160.76,6.2203]
[1723154351804,15.5403,160.88,160.73,21.7751]
[1723154352030,15.5403,160.88,160.73,15.5538]
[1723154352240,22.3395,160.9,160.77,15.5501]
[1723154352537,8.0455616,160.94,160.82,15.5446]
[1723154352902,8.0455616,160.94,160.86,6.2162]
[1723154353105,14.2592616,160.94,160.85,6.2166]
[1723154353307,8.0455616,160.94,160.82,15.5446]
[1723154353508,6.2145,160.92,160.82,15.5446]
[1723154353725,8.0455616,160.94,160.79,6.2191]
[1723154353918,1.55405507,160.93,160.71,15.555]
[1723154354126,6.2202,160.77,160.67,6.2238]
[1723154354328,8.0455616,160.94,160.66,31.1198]
[1723154354329,15.5386,160.89,160.66,31.1198]
[1723154354634,54.59030493,160.94,160.75,15.552]
[1723154354847,6.2183,160.82,160.7,15.5568]
[1723154355132,15.5424,160.85,160.64,15.5618]
[1723154355431,6.2184,160.82,160.7,15.5565]
[1723154355729,51.2188,160.81,160.7,15.5565]
[1723154356029,15.0522,160.84,160.7,15.5565]
[1723154356240,45.0,160.83,160.7,15.5565]
[1723154356535,41.17,160.77,160.7,15.5565]
[1723154356832,41.17,160.77,160.73,6.2215]
[1723154357131,6.2178,160.83,160.73,6.2215]
[1723154357329,15.0522,160.84,160.7,15.5565]
[1723154357330,41.17,160.8,160.7,15.5565]
[1723154357536,15.0522,160.84,160.76,6.2201]
[1723154357718,6.215,160.9,160.75,15.5518]
[1723154358229,41.17,160.84,160.75,15.5518]
[1723154358819,15.272,160.93,160.86,6.2163]
[1723154359013,15.272,160.93,160.78,20.0]
[1723154359236,15.272,160.93,160.86,15.5413]
[1723154359533,15.272,160.93,160.74,31.1055]
[1723154359751,15.272,160.93,160.75,20.0]
[1723154359956,1.5684616,160.94,160.89,15.5383]
[1723154360443,1.5684616,160.94,160.84,15.5433]
[1723154360811,1.5684616,160.94,160.88,15.5386]
[1723154361730,1.5684616,160.94,160.83,15.5439]
[1723154362345,1.5684616,160.94,160.78,15.5487]
[1723154362346,0.5684616,160.94,160.78,15.5487]
[1723154363118,0.5684616,160.94,160.82,15.5445]
[1723154363319,0.5684616,160.94,160.86,15.5413]
[1723154363622,0.5684616,160.94,160.85,6.2167]
[1723154363823,6.2139,160.93,160.81,15.5458]
[1723154364021,0.5684616,160.94,160.81,15.5458]
[1723154364408,0.5684616,160.94,160.74,56.010261]
[1723154364643,6.2144,160.92,160.84,6.2172]
[1723154364943,0.5684616,160.94,160.83,6.2176]
[1723154364944,6.2147,160.91,160.83,6.2176]
[1723154365652,6.2162,160.87,160.74,31.1053]
[1723154365835,16.1022616,160.94,160.74,31.1053]
[1723154366140,6.2157,160.89,160.79,15.5479]
[1723154366338,16.1022616,160.94,160.83,6.2174]
[1723154366637,6.2148,160.91,160.83,6.2176]
[1723154366936,51.214,160.93,160.82,15.5444]
[1723154367142,6.214,160.93,160.82,15.5444]
[1723154367351,0.5684616,160.94,160.86,6.2163]
[1723154367537,6.7819616,160.94,160.85,21.7582]
[1723154367848,0.5684616,160.94,160.85,15.5416]
[1723154368424,41.17,160.88,160.85,21.7583]
[1723154368624,41.17,160.88,160.85,15.5416]
[1723154369651,41.17,160.88,160.86,6.2164]
[1723154370341,41.17,160.88,160.85,21.7583]
[1723154370539,41.17,160.88,160.83,6.2174]
[1723154370924,41.17,160.88,160.84,15.5425]
[1723154371122,41.17,160.88,160.84,21.7595]
[1723154371322,6.214,160.93,160.85,6.2166]
[1723154371532,6.7821616,160.94,160.87,6.2161]
[1723154371835,0.5684616,160.94,160.84,15.5425]
[1723154372033,41.17,160.89,160.86,6.2165]
[1723154372247,41.17,160.89,160.84,21.7595]
[1723154372638,41.17,160.89,160.84,15.5425]
[1723154372824,41.17,160.89,160.84,21.7597]
[1723154373343,41.17,160.86,160.84,21.7597]
[1723154375040,0.5684616,160.94,160.91,15.5361]
[1723154375247,0.5684616,160.94,160.91,21.7506]
[1723154375453,0.5684616,160.94,160.91,15.5361]
[1723154376056,0.5684616,160.94,160.86,15.5406]
[1723154376230,0.5684616,160.94,160.89,21.7527]
[1723154376430,0.5684616,160.94,160.84,15.5428]
[1723154376664,6.7819616,160.94,160.87,6.216]
[1723154376859,0.5684616,160.94,160.84,21.7598]
[1723154377166,6.2143,160.92,160.84,15.5428]
[1723154377340,6.2147,160.91,160.84,15.5428]
[1723154377648,20.0,160.9,160.84,21.76]
[1723154378052,20.0,160.9,160.84,15.5428]
[1723154378229,6.214,160.93,160.85,6.2168]
[1723154378430,41.17,160.89,160.85,6.2168]
[1723154378657,41.17,160.89,160.84,15.5428]
[1723154378950,41.17,160.89,160.84,21.7599]
[1723154379252,41.17,160.89,160.84,6.2172]
[1723154379632,41.17,160.89,160.82,6.218]
[1723154379945,41.17,160.89,160.8,15.547]
[1723154379946,41.17,160.89,160.83,6.2176]
[1723154380138,47.5434071,160.89,160.81,6.2182]
[1723154380343,47.5434071,160.89,160.82,6.2179]
[1723154380851,26.0691,160.88,160.75,15.5518]
[1723154381052,6.2175,160.84,160.77,6.2198]
[1723154381252,26.0691,160.88,160.75,21.7723]
[1723154381253,41.17,160.82,160.75,21.7723]
[1723154381568,26.0691,160.88,160.7,5.99743128]
[1723154381853,15.5472,160.8,160.63,24.921182]
[1723154382070,15.5472,160.8,160.59,31.1347]
[1723154382071,6.2215,160.74,160.65,6.2245]
[1723154382271,41.17,160.71,160.65,6.2245]
[1723154382564,47.3924,160.71,160.61,15.5654]
[1723154382739,20.0,160.7,160.63,6.2253]
[1723154382939,26.2229,160.7,160.62,6.2257]
[1723154383142,6.2233,160.69,160.62,6.2257]
[1723154383573,6.2241,160.67,160.61,15.5654]
[1723154384069,20.0,160.7,160.47,28.94843654]
[1723154384070,20.0,160.7,160.59,6.2269]
[1723154384362,45.0,160.69,160.53,15.5732]
[1723154384764,20.0,160.68,160.53,15.5732]
[1723154385063,20.0,160.68,160.49,15.577]
[1723154385064,46.55640295,160.67,160.49,15.577]
[1723154385255,6.2309,160.49,160.41,15.20560733]
[1723154385448,43.44738025,160.66,160.41,6.2336]
[1723154385649,45.0,160.65,160.41,6.2336]
[1723154385859,21.55768332,160.64,160.41,6.2336]
[1723154386165,15.5724,160.54,160.4,13.5857]
[1723154386369,6.586,160.52,160.26,20.9032586]
[1723154386555,15.5759,160.51,160.37,6.2355]
[1723154386758,45.0,160.5,160.37,6.2355]
[1723154387260,6.2329,160.44,160.38,6.2351]
[1723154387465,45.0,160.5,160.35,15.5903]
[1723154387662,6.233,160.44,160.37,6.2355]
[1723154388040,45.0,160.5,160.35,21.8263]
[1723154388365,6.2329,160.44,160.35,15.5903]
[1723154388744,6.2333,160.43,160.37,6.2352]
[1723154388943,45.0,160.5,160.37,6.2352]
[1723154388944,45.0,160.5,160.37,6.2353]
[1723154389151,45.0,160.5,160.35,15.5903]
[1723154389152,15.5787,160.48,160.35,15.5903]
[1723154389352,45.0,160.47,160.35,15.5903]
[1723154389750,45.0,160.47,160.35,21.8265]
[1723154389965,6.2341,160.41,160.35,15.5903]
[1723154390156,45.0,160.47,160.35,21.8265]
[1723154390360,1.55858568,160.46,160.31,15.5943]
[1723154390571,17.14088928,160.45,160.31,15.5943]
[1723154390863,45.0,160.47,160.08,41.17]
[1723154390864,6.2372,160.33,160.27,21.8376]
[1723154391062,15.5876,160.39,160.27,15.5982]
[1723154391370,15.5834,160.43,160.27,15.5982]
[1723154391671,6.2355,160.38,160.27,15.5982]
[1723154391858,6.2351,160.39,160.3,15.5953]
[1723154392063,6.2356,160.37,160.31,6.2378]
[1723154392246,21.8905,160.44,160.33,15.5922]
[1723154392448,6.2333,160.43,160.33,15.5922]
[1723154392663,41.17,160.39,160.37,6.2355]
[1723154392859,21.8905,160.44,160.38,6.235]
[1723154393167,21.8905,160.44,160.38,6.2351]
[1723154393376,21.8905,160.44,160.36,15.5891]
[1723154393554,21.8905,160.44,160.41,6.234]
[1723154393754,21.8905,160.44,160.39,15.5862]
[1723154394163,21.8905,160.44,160.4,6.2341]
[1723154394470,21.8905,160.44,160.35,15.5906]
[1723154394884,21.8905,160.44,160.36,6.2355]
[1723154395079,21.8905,160.44,160.38,15.5876]
[1723154395376,21.8905,160.44,160.34,31.1836]
[1723154395377,21.8905,160.44,160.43,6.2332]
[1723154395547,6.417,160.52,160.34,31.1836]
[1723154395751,6.417,160.52,160.48,6.2312]
[1723154395950,6.417,160.52,160.45,15.581]
[1723154396491,6.4773,160.67,160.37,20.0]
[1723154396650,6.4773,160.9,160.48,20.0]
[1723154396851,6.4773,160.9,160.75,6.2207]
[1723154397081,6.4773,160.9,160.85,15.5422]
[1723154397270,6.4773,160.9,160.88,6.2154]
[1723154397450,1.0611657,160.98,160.9,15.5367]
[1723154397652,41.17,160.96,160.8,15.5469]
[1723154397855,1.55414756,160.95,160.74,6.2209]
[1723154398075,6.5361,160.81,160.71,6.5361]
[1723154398280,8.09117776,160.81,160.67,6.2235]
[1723154398587,6.5361,160.81,160.59,15.5397]
[1723154398899,22.1433,160.77,160.59,8.8731]
[1723154399052,15.5601,160.67,160.56,18.23426562]
[1723154399361,15.5601,160.67,160.38,31.52778786]
[1723154399362,16.0385,160.57,160.45,15.5807]
[1723154399558,16.0385,160.57,160.44,31.164]
[1723154399881,16.0385,160.77,160.52,20.0]
[1723154400073,16.0385,160.77,160.54,20.0]
[1723154400384,6.1048,160.87,160.81,15.5457]
[1723154400385,16.0385,160.87,160.81,15.5457]
[1723154400556,16.0385,160.87,160.82,6.2179]
[1723154400754,16.0385,160.87,160.85,6.2167]
[1723154400949,16.0385,160.87,160.85,21.7589]
[1723154401181,16.0385,160.87,160.74,17.5521]
[1723154401385,16.0385,160.87,160.56,20.0]
[1723154401678,6.3305,160.82,160.65,6.2245]
[1723154401885,6.3305,160.82,160.59,15.567]
[1723154402053,6.3305,160.82,160.54,15.5715]
[1723154402054,40.87,160.62,160.54,15.5715]
[1723154402255,6.2274,160.58,160.51,6.2299]
[1723154402459,6.3305,160.64,160.48,31.1552]
[1723154402660,22.0208,160.74,160.65,15.5616]
[1723154402865,6.2183,160.82,160.57,20.0]
[1723154403082,6.2444,160.83,160.77,6.2199]
[1723154403257,15.5077,160.87,160.77,15.5501]
[1723154403461,15.5077,160.87,160.8,6.2186]
[1723154403653,15.5077,160.87,160.62,40.87]
[1723154403856,15.5465,160.81,160.66,15.5605]
[1723154404090,31.0423,160.87,160.62,6.2258]
[1723154404383,6.226,160.62,160.51,24.929253]
[1723154404587,6.4682,160.85,160.39,6.0877]
[1723154404588,16.5191,160.63,160.39,6.0877]
[1723154404784,16.5191,160.63,160.48,40.87]
[1723154404994,16.5191,160.74,160.7,6.2226]
[1723154405170,16.5191,160.85,160.77,6.2197]
[1723154405364,16.5191,160.85,160.79,6.2191]
[1723154405703,16.5191,160.96,160.86,6.2163]
[1723154405987,1.0611657,160.98,160.81,20.0]
[1723154406291,1.0611657,160.98,160.94,15.5335]
[1723154406456,1.0611657,160.98,160.77,31.0984]
[1723154406655,1.0611657,160.98,160.76,6.2201]
[1723154406656,23.2413,160.96,160.76,6.2201]
[1723154406881,23.2413,160.96,160.48,40.87]
[1723154406882,1.55456776,160.95,160.69,6.2229]
[1723154407196,40.87,160.7,160.63,6.2254]
[1723154407358,40.87,160.7,160.48,40.87]
[1723154407556,1.55636079,160.69,160.4,20.0]
[1723154407760,15.5597,160.68,160.48,15.5779]
[1723154408087,15.5597,160.68,160.52,6.2295]
[1723154408271,16.5968,160.73,160.53,20.0]
[1723154408464,22.1051,160.85,160.7,15.5563]
[1723154408662,22.1051,160.85,160.6,40.87]
[1723154408663,16.2292,160.84,160.66,40.87]
[1723154408997,6.2183,160.82,160.73,6.2215]
[1723154409172,1.55481506,160.81,160.54,6.6481]
[1723154409379,15.1542,160.7,160.54,6.2285]
[1723154409689,15.1542,160.7,160.38,20.0]
[1723154409690,15.5589,160.68,160.53,15.573]
[1723154409894,6.0815,160.8,160.58,20.0]
[1723154410055,6.221,160.75,160.65,6.2245]
[1723154410256,6.2225,160.71,160.63,6.2254]
[1723154410480,16.4788,160.79,160.57,15.5692]
[1723154410686,16.4788,160.79,160.46,20.0]
[1723154410687,31.1093,160.73,160.39,20.0]
[1723154410863,23.0591,160.72,160.47,6.2314]
[1723154411067,20.0,160.71,160.46,15.5796]
[1723154411267,46.55730462,160.7,160.46,15.5796]
[1723154411493,24.49239682,160.72,160.45,51.1604]
[1723154411665,24.49239682,160.72,160.45,31.1604]
[1723154411666,23.0591,160.72,160.45,31.1604]
[1723154411858,6.2285,160.56,160.48,15.5773]
[1723154412082,15.5641,160.63,160.43,15.5826]
[1723154412278,1.55718741,160.62,160.43,15.5826]
[1723154412492,15.3725,160.58,160.38,15.5876]
[1723154412698,6.3997,160.54,160.38,15.5876]
[1723154412864,6.2302,160.51,160.38,15.5876]
[1723154413066,6.2253,160.64,160.44,20.0]
[1723154413393,16.4003,160.69,160.5,20.0]
[1723154413578,16.4003,160.69,160.55,20.0]
[1723154413774,6.5438,160.74,160.44,6.1568]
[1723154413775,31.1039,160.76,160.47,20.0]
[1723154414000,23.43629558,160.75,160.39,20.0]
[1723154414168,31.40942855,160.88,160.23,2.0006]
[1723154414169,15.3363,160.55,160.4,15.5854]
[1723154414368,15.3363,160.55,160.3,20.0]
[1723154414369,6.2315,160.48,160.3,20.0]
[1723154414696,6.2315,160.48,160.39,15.5868]
[1723154414896,15.3363,160.55,160.39,15.5868]
[1723154415199,15.8319,160.65,160.45,20.0]
[1723154415374,15.8319,160.65,160.63,6.2253]
[1723154415569,15.8319,160.76,160.64,15.562]
[1723154415768,6.2251,160.64,160.56,6.2281]
[1723154415969,15.8319,160.76,160.39,20.0]
[1723154415970,6.2288,160.55,160.39,20.0]
[1723154416177,15.0162,160.53,160.43,15.5827]
[1723154416374,21.2245,160.53,160.38,6.2348]
[1723154416588,21.2245,160.53,160.38,15.5874]
[1723154416589,6.2329,160.44,160.38,15.5874]
[1723154416809,6.2335,160.43,160.35,6.2362]
[1723154417030,6.2338,160.42,160.35,6.2362]
[1723154417296,6.2338,160.42,160.33,15.5925]
[1723154417297,40.87,160.55,160.42,20.0]
[1723154417498,22.8243,160.63,160.39,20.0]
[1723154417670,6.231,160.49,160.33,31.1854]
[1723154417868,22.8243,160.63,160.33,31.1854]
[1723154417869,22.8243,160.63,160.4,6.2342]
[1723154418107,31.1433,160.55,160.26,21.0611657]
[1723154418402,15.9943,160.54,160.43,6.233]
[1723154418568,15.5764,160.5,160.36,15.589]
[1723154418912,15.5764,160.5,160.26,1.0611657]
[1723154418913,15.5764,160.5,160.31,15.5944]
[1723154419266,15.5802,160.46,160.31,15.5944]
[1723154419471,32.71357853,160.49,160.26,1.0611657]
[1723154419472,15.5841,160.42,160.26,22.9000657]
[1723154419666,15.9943,160.54,160.3,20.0]
[1723154419903,15.9943,160.54,160.37,20.0]
[1723154420065,6.2308,160.5,160.31,20.0]
[1723154420272,6.2308,160.5,160.42,21.8166]
[1723154420273,6.2306,160.5,160.42,21.8166]
[1723154420471,6.2317,160.47,160.39,6.2346]
[1723154420698,6.2326,160.45,160.37,15.5881]
[1723154420885,15.9943,160.54,160.35,6.2361]
[1723154421194,6.385,160.64,160.54,6.2288]
[1723154421395,6.385,160.64,160.36,20.0]
[1723154421396,31.1289,160.63,160.36,20.0]
[1723154421579,31.1289,160.63,160.32,26.3955]
[1723154421580,15.5725,160.54,160.39,6.2345]
[1723154421782,16.79429187,160.53,160.32,6.2371]
[1723154422001,6.132,160.52,160.36,6.2357]
[1723154422301,6.132,160.52,160.18,20.0]
[1723154422302,15.2363,160.53,160.51,21.8045]
[1723154422507,15.5674,160.6,160.42,15.5832]
[1723154422670,21.3683,160.61,160.29,20.0]